[Event "91st GER-ch 2020"]
[Site "Magdeburg"]
[Date "2020.08.19"]
[Round "5.16"]
[White "Koellner, Ruben Gideon"]
[Black "Schulte, Felix"]
[Result "1/2-1/2"]
[ECO "A45"]
[WhiteElo "2376"]
[BlackElo "2174"]
[Annotator "ChessBase"]
[PlyCount "125"]
[EventDate "2020.08.16"]
[EventType "swiss"]
[EventCountry "GER"]
[SourceTitle "playchess.com"]
[Source "ChessBase"]
[SourceQuality "1"]
[TimeControl "40/5400+30:1800+30"]

1. d4 {[%emt 0:00:00]} Nf6 {[%emt 0:00:00]} 2. Nc3 {[%emt 0:00:00]} d5 {[%emt 0:00:00]} 3. Bf4 {[%emt 0:00:00]} c6 {[%emt 0:01:11]} 4. e3 {[%emt 0:00:01]} g6 {[%emt 0:00:32]} 5. Nf3 {[%emt 0:00:55]} Bg7 {[%emt 0:00:22]} 6. h4 {[%emt 0:00:18]} Bg4 {[%emt 0:02:17]} 7. Be2 {[%emt 0:00:08]} Nbd7 {[%emt 0:01:47]} 8. Ne5 {[%emt 0:00:31]} Bxe2 {[%emt 0:02:55]} 9. Qxe2 {[%emt 0:00:06]} Qa5 {[%emt 0:06:31]} 10. f3 {[%emt 0:01:34]} Nh5 {[%emt 0:20:06]} 11. Bh2 {[%emt 0:05:04]} Bxe5 {[%emt 0:05:44]} 12. dxe5 {[%emt 0:00:10]} Qb4 {[%emt 0:01:08]} 13. O-O-O {[%emt 0:00:56]} Nc5 {[%emt 0:08:39]} 14. a3 {[%emt 0:06:45]} Qb6 {[%emt 0:02:47]} 15. Kb1 {[%emt 0:01:41]} O-O-O {[%emt 0:01:49]} 16. Qf2 {[%emt 0:01:58]} Ng7 {[%emt 0:03:05]} 17. e4 {[%emt 0:02:54]} Na4 {[%emt 0:02:07]} 18. Qxb6 {[%emt 0:00:15]} Nxc3+ {[%emt 0:00:15]} 19. bxc3 {[%emt 0:00:03]} axb6 {[%emt 0:00:07]} 20. exd5 {[%emt 0:00:41]} Rxd5 {[%emt 0:03:54]} 21. Rxd5 {[%emt 0:00:06]} cxd5 {[%emt 0:00:02]} 22. Rd1 {[%emt 0:03:58]} Rd8 {[%emt 0:00:35]} 23. Bg1 {[%emt 0:00:22]} Kc7 {[%emt 0:01:44]} 24. c4 {[%emt 0:00:10]} Kc6 {[%emt 0:01:02]} 25. Ka2 {[%emt 0:04:52]} Ne6 {[%emt 0:00:38]} 26. cxd5+ {[%emt 0:02:41]} Rxd5 {[%emt 0:00:13]} 27. Rxd5 {[%emt 0:00:02]} Kxd5 {[%emt 0:00:10]} 28. Bxb6 {[%emt 0:00:05]} Kxe5 {[%emt 0:00:28]} 29. Kb3 {[%emt 0:00:21]} Kd5 {[%emt 0:04:33]} 30. Kb4 {[%emt 0:02:41]} Kc6 {[%emt 0:00:23]} 31. Be3 {[%emt 0:00:13]} Nc7 {[%emt 0:02:13]} 32. Kc4 {[%emt 0:01:15]} f6 {[%emt 0:08:49]} 33. a4 {[%emt 0:03:25]} Nd5 {[%emt 0:01:15]} 34. Bh6 {[%emt 0:07:46]} Nc7 {[%emt 0:07:11]} 35. Bf8 {[%emt 0:02:58]} Kd7 {[%emt 0:00:30]} 36. g3 {[%emt 0:06:02]} Ne6 {[%emt 0:00:09]} 37. Bh6 {[%emt 0:00:04]} Kc6 {[%emt 0:00:06]} 38. Bc1 {[%emt 0:02:39]} Ng7 {[%emt 0:03:04]} 39. g4 {[%emt 0:01:27]} e5 {[%emt 0:02:47]} 40. g5 {[%emt 0:06:27]} fxg5 {[%emt 0:03:17]} 41. hxg5 {[%emt 0:30:07]} Nf5 {[%emt 0:30:57]} 42. Kd3 {[%emt 0:11:35]} Nd6 {[%emt 0:03:53]} 43. f4 {[%emt 0:05:32]} Kd5 {[%emt 0:01:13]} 44. fxe5 {[%emt 0:00:57]} Kxe5 {[%emt 0:00:50]} 45. c4 {[%emt 0:03:05]} Nf7 {[%emt 0:00:00]} 46. Kc3 {[%emt 0:00:00]} Kd6 {[%emt 0:00:00]} 47. Kd4 {[%emt 0:00:00]} Kc6 {[%emt 0:00:00]} 48. Bf4 {[%emt 0:00:00]} Nd8 {[%emt 0:00:00]} 49. Be3 {[%emt 0:00:00]} Kd6 {[%emt 0:00:00]} 50. c5+ {[%emt 0:00:00]} Kc6 {[%emt 0:00:00]} 51. Ke5 {[%emt 0:00:00]} h6 {[%emt 0:00:00]} 52. gxh6 {[%emt 0:00:00]} Nf7+ {[%emt 0:00:00]} 53. Kd4 {[%emt 0:00:00]} Nxh6 {[%emt 0:00:00]} 54. Bxh6 {[%emt 0:00:00]} b6 {[%emt 0:00:00]} 55. a5 {[%emt 0:00:00]} bxc5+ 56. Kc4 {[%emt 0:00:00]} Kb7 {[%emt 0:00:00]} 57. Kxc5 {[%emt 0:00:00]} Ka6 {[%emt 0:00:00]} 58. Kb4 {[%emt 0:00:00]} Kb7 {[%emt 0:00:00]} 59. Kb5 {[%emt 0:00:00]} g5 {[%emt 0:00:00]} 60. a6+ {[%emt 0:00:00]} Ka7 {[%emt 0:00:00]} 61. Bxg5 {[%emt 0:00:00]} Kb8 {[%emt 0:00:00]} 62. Kb6 {[%emt 0:00:00]} Ka8 {[%emt 0:00:00]} 63. Bf4 {[%emt 0:00:00]} 1/2-1/2

[Event "91st GER-ch 2020"]
[Site "Magdeburg"]
[Date "2020.08.19"]
[Round "5.17"]
[White "Michalowski, Peter"]
[Black "Falke, Isaak"]
[Result "1/2-1/2"]
[ECO "B13"]
[WhiteElo "2106"]
[BlackElo "2113"]
[Annotator "ChessBase"]
[PlyCount "81"]
[EventDate "2020.08.16"]
[EventType "swiss"]
[EventCountry "GER"]
[SourceTitle "playchess.com"]
[Source "ChessBase"]
[SourceQuality "1"]
[TimeControl "40/5400+30:1800+30"]

1. e4 {[%emt 0:00:00]} c6 {[%emt 0:04:14]} 2. d4 {[%emt 0:07:35]} d5 {[%emt 0:00:51]} 3. exd5 {[%emt 0:00:09]} cxd5 {[%emt 0:00:55]} 4. Bd3 {[%emt 0:03:00]} Nf6 {[%emt 0:05:17]} 5. h3 {[%emt 0:00:11]} Nc6 {[%emt 0:11:10]} 6. c3 {[%emt 0:02:36]} e6 {[%emt 0:11:26]} 7. Nf3 {[%emt 0:11:18]} Bd6 {[%emt 0:00:14]} 8. O-O {[%emt 0:00:11]} O-O {[%emt 0:03:11]} 9. Re1 {[%emt 0:03:21]} Qc7 {[%emt 0:14:48]} 10. Nbd2 {[%emt 0:30:42]} Rb8 {[%emt 0:08:43]} 11. Qe2 {[%emt 0:07:24]} Nh5 {[%emt 0:06:02]} 12. Nf1 {[%emt 0:05:54]} Nf4 {[%emt 0:00:36]} 13. Bxf4 {[%emt 0:00:10]} Bxf4 {[%emt 0:00:02]} 14. Ne5 {[%emt 0:04:07]} f6 {[%emt 0:04:03]} 15. Nxc6 {[%emt 0:03:38]} bxc6 {[%emt 0:00:06]} 16. Qc2 {[%emt 0:03:42]} g6 {[%emt 0:04:02]} 17. c4 {[%emt 0:01:16]} Qb7 {[%emt 0:09:06]} 18. b3 {[%emt 0:01:05]} e5 {[%emt 0:01:52]} 19. dxe5 {[%emt 0:05:16]} fxe5 {[%emt 0:00:32]} 20. cxd5 {[%emt 0:01:23]} cxd5 {[%emt 0:00:15]} 21. Ne3 {[%emt 0:00:52]} e4 {[%emt 0:03:27]} 22. Bf1 {[%emt 0:00:26]} Be6 {[%emt 0:01:19]} 23. Rad1 {[%emt 0:00:52]} Rbd8 {[%emt 0:03:25]} 24. g3 {[%emt 0:02:09]} Be5 {[%emt 0:01:57]} 25. Bg2 {[%emt 0:00:28]} Rc8 {[%emt 0:01:07]} 26. Qb1 {[%emt 0:00:10]} Rcd8 {[%emt 0:01:42]} 27. Re2 {[%emt 0:01:12]} Bf5 {[%emt 0:00:52]} 28. g4 {[%emt 0:00:46]} Be6 {[%emt 0:00:08]} 29. Nc2 {[%emt 0:01:55]} Qf7 {[%emt 0:00:29]} 30. Nd4 {[%emt 0:00:24]} Bd7 {[%emt 0:00:42]} 31. Qc1 {[%emt 0:00:54]} Rc8 {[%emt 0:00:16]} 32. Qa3 {[%emt 0:00:48]} Qf4 {[%emt 0:01:33]} 33. Qxa7 {[%emt 0:01:17]} Rc1 {[%emt 0:00:51]} 34. Rxc1 {[%emt 0:00:47]} Qxc1+ {[%emt 0:00:02]} 35. Bf1 {[%emt 0:00:09]} Rf7 {[%emt 0:00:26]} 36. Qa8+ {[%emt 0:00:16]} Kg7 {[%emt 0:00:23]} 37. Qxd5 {[%emt 0:00:09]} Qf4 {[%emt 0:01:31]} 38. Bg2 {[%emt 0:00:12]} Qc1+ {[%emt 0:00:13]} 39. Bf1 {[%emt 0:00:10]} Qf4 {[%emt 0:00:03]} 40. Bg2 {[%emt 0:02:28]} Qc1+ 41. Bf1 1/2-1/2

[Event "91st GER-ch 2020"]
[Site "Magdeburg"]
[Date "2020.08.20"]
[Round "6.16"]
[White "Hundack, Rolf"]
[Black "Weber, Max"]
[Result "0-1"]
[ECO "A46"]
[WhiteElo "2126"]
[BlackElo "2243"]
[Annotator "ChessBase"]
[PlyCount "148"]
[EventDate "2020.08.16"]
[EventType "swiss"]
[EventCountry "GER"]
[SourceTitle "playchess.com"]
[Source "ChessBase"]
[SourceQuality "1"]
[TimeControl "40/5400+30:1800+30"]

1. d4 {[%emt 0:00:12]} Nf6 {[%emt 0:00:00]} 2. Nf3 {[%emt 0:00:44]} d5 {[%emt 0:00:00]} 3. g3 {[%emt 0:02:45]} g6 {[%emt 0:02:47]} 4. Bg2 {[%emt 0:01:31]} Bg7 {[%emt 0:00:07]} 5. O-O {[%emt 0:01:03]} O-O {[%emt 0:00:13]} 6. Bf4 {[%emt 0:03:38]} c6 {[%emt 0:03:29]} 7. Nbd2 {[%emt 0:06:32]} Nbd7 {[%emt 0:05:31]} 8. c4 {[%emt 0:05:14]} dxc4 {[%emt 0:10:17]} 9. Nxc4 {[%emt 0:01:39]} Nb6 {[%emt 0:03:14]} 10. Nce5 {[%emt 0:04:57]} Bf5 {[%emt 0:08:37]} 11. Qc1 {[%emt 0:05:17]} Be4 {[%emt 0:04:32]} 12. Bh6 {[%emt 0:04:27]} Qd5 {[%emt 0:08:12]} 13. Rd1 {[%emt 0:03:59]} Rad8 {[%emt 0:02:05]} 14. Bxg7 {[%emt 0:02:53]} Kxg7 {[%emt 0:00:11]} 15. Ne1 {[%emt 0:04:46]} Bxg2 {[%emt 0:02:28]} 16. Nxg2 {[%emt 0:00:44]} Qd6 {[%emt 0:09:19]} 17. Nh4 {[%emt 0:18:23]} Nbd7 {[%emt 0:07:17]} 18. Qg5 {[%emt 0:09:03]} Qe6 {[%emt 0:02:01]} 19. Nd3 {[%emt 0:10:53]} Qxe2 {[%emt 0:09:35]} 20. f3 {[%emt 0:07:51]} Nd5 {[%emt 0:03:56]} 21. Nf2 {[%emt 0:01:15]} f6 {[%emt 0:06:36]} 22. Qg4 {[%emt 0:01:25]} f5 {[%emt 0:02:45]} 23. Qg5 {[%emt 0:00:38]} Qe3 {[%emt 0:00:55]} 24. f4 {[%emt 0:00:31]} Qe6 {[%emt 0:00:38]} 25. Re1 {[%emt 0:00:47]} Qf6 {[%emt 0:01:01]} 26. Nf3 {[%emt 0:00:39]} h6 {[%emt 0:00:45]} 27. Qxf6+ {[%emt 0:00:37]} Kxf6 {[%emt 0:00:24]} 28. Nd3 {[%emt 0:00:22]} Nc7 {[%emt 0:03:32]} 29. Re2 {[%emt 0:00:20]} e6 {[%emt 0:01:02]} 30. Rae1 {[%emt 0:00:15]} Rfe8 {[%emt 0:01:13]} 31. a3 {[%emt 0:01:12]} Re7 {[%emt 0:00:29]} 32. Nd2 {[%emt 0:00:32]} Nb5 {[%emt 0:01:24]} 33. Nf3 {[%emt 0:00:29]} Nf8 {[%emt 0:00:49]} 34. Nc5 {[%emt 0:00:55]} Nxd4 {[%emt 0:00:30]} 35. Nxd4 {[%emt 0:00:02]} Rxd4 {[%emt 0:00:10]} 36. Re3 {[%emt 0:00:45]} b6 {[%emt 0:00:27]} 37. Nd3 {[%emt 0:00:17]} Nd7 {[%emt 0:00:27]} 38. Nb4 {[%emt 0:00:43]} Rd6 {[%emt 0:00:32]} 39. Nd3 {[%emt 0:00:30]} Rd4 {[%emt 0:00:38]} 40. Nb4 {[%emt 0:00:33]} Rd6 {[%emt 0:00:02]} 41. Nd3 {[%emt 0:00:42]} c5 {[%emt 0:05:45]} 42. Ne5 {[%emt 0:02:04]} g5 {[%emt 0:03:14]} 43. Nd3 {[%emt 0:05:13]} Rd5 {[%emt 0:01:45]} 44. Rf1 {[%emt 0:06:49]} e5 {[%emt 0:04:34]} 45. fxg5+ {[%emt 0:05:24]} hxg5 {[%emt 0:00:36]} 46. Nf2 {[%emt 0:01:12]} Kg6 {[%emt 0:02:11]} 47. h4 {[%emt 0:01:24]} g4 {[%emt 0:01:33]} 48. Nd3 {[%emt 0:03:11]} Kf6 {[%emt 0:02:28]} 49. Nf2 {[%emt 0:01:45]} Kg6 {[%emt 0:00:59]} 50. Nd3 {[%emt 0:01:01]} Rf7 {[%emt 0:01:50]} 51. Rfe1 {[%emt 0:01:49]} c4 {[%emt 0:03:33]} 52. Nxe5+ {[%emt 0:01:15]} Nxe5 {[%emt 0:00:08]} 53. Rxe5 {[%emt 0:00:03]} Rxe5 {[%emt 0:00:07]} 54. Rxe5 {[%emt 0:00:02]} Rd7 {[%emt 0:02:25]} 55. Re6+ {[%emt 0:01:22]} Kf7 {[%emt 0:00:13]} 56. Rc6 {[%emt 0:00:07]} Rd3 {[%emt 0:02:28]} 57. Kf2 {[%emt 0:01:36]} Rf3+ {[%emt 0:00:14]} 58. Kg2 {[%emt 0:00:16]} Rb3 {[%emt 0:00:32]} 59. Rxc4 {[%emt 0:00:39]} Rxb2+ {[%emt 0:00:06]} 60. Kh1 {[%emt 0:02:03]} Rb3 {[%emt 0:01:19]} 61. Rc7+ {[%emt 0:00:16]} Kf6 {[%emt 0:00:22]} 62. Rxa7 {[%emt 0:00:51]} Rxg3 {[%emt 0:00:10]} 63. Ra6 {[%emt 0:00:24]} Rb3 {[%emt 0:01:35]} 64. a4 {[%emt 0:00:20]} Ke5 {[%emt 0:00:27]} 65. a5 {[%emt 0:01:19]} b5 {[%emt 0:00:13]} 66. Ra8 {[%emt 0:00:57]} Kf4 {[%emt 0:00:11]} 67. Kg2 {[%emt 0:00:43]} Rb2+ {[%emt 0:00:08]} 68. Kf1 {[%emt 0:00:18]} Kf3 {[%emt 0:00:19]} 69. Ke1 {[%emt 0:01:11]} g3 {[%emt 0:00:19]} 70. h5 {[%emt 0:00:43]} g2 {[%emt 0:00:25]} 71. Rg8 {[%emt 0:00:16]} Rb1+ {[%emt 0:00:21]} 72. Kd2 {[%emt 0:00:02]} g1=Q {[%emt 0:00:35]} 73. Rxg1 {[%emt 0:00:07]} Rxg1 {[%emt 0:00:04]} 74. a6 {[%emt 0:00:31]} Ra1 {[%emt 0:00:11]} 0-1

[Event "91st GER-ch 2020"]
[Site "Magdeburg"]
[Date "2020.08.20"]
[Round "6.17"]
[White "Schulz, Lukas"]
[Black "Falke, Isaak"]
[Result "1-0"]
[ECO "C37"]
[WhiteElo "2293"]
[BlackElo "2113"]
[Annotator "RC"]
[PlyCount "85"]
[EventDate "2020.08.16"]
[EventType "swiss"]
[EventCountry "GER"]
[SourceTitle "playchess.com"]
[Source "ChessBase"]
[SourceQuality "1"]
[TimeControl "40/5400+30:1800+30"]

1. e4 {[%emt 0:00:00]} e5 {[%emt 0:04:57]} 2. f4 {[%emt 0:00:00]} exf4 {[%emt 0:00:09]} 3. Nf3 {[%emt 0:00:00]} g5 {[%emt 0:01:10]} 4. Nc3 {[%emt 0:01:09]} g4 {[%emt 0:00:42]} 5. Ne5 {[%emt 0:01:48]} h5 {[%emt 0:23:21]} 6. Bc4 {[%emt 0:00:54]} Qh4+ {[%emt 0:03:30]} 7. Kf1 {[%emt 0:00:44]} Nh6 {[%emt 0:13:40]} 8. d4 {[%emt 0:04:29]} d6 {[%emt 0:00:15]} 9. Nd3 {[%emt 0:03:38]} f3 {[%emt 0:00:31]} 10. Bf4 {[%emt 0:05:23]} Nc6 {[%emt 0:13:40]} 11. Nb5 {[%emt 0:07:43]} Qd8 {[%emt 0:04:30]} 12. d5 {[%emt 0:17:20]} Na5 {[%emt 0:00:15]} 13. Bb3 {[%emt 0:00:03]} Bd7 {[%emt 0:13:04]} 14. Nc3 {[%emt 0:02:35]} Bg7 {[%emt 0:02:14]} 15. Qd2 {[%emt 0:01:08]} f6 {[%emt 0:04:07]} 16. gxf3 {[%emt 0:03:55]} Qe7 {[%emt 0:01:55]} 17. h3 {[%emt 0:00:58]} gxf3 {[%emt 0:00:26]} 18. Qf2 {[%emt 0:00:24]} Nf7 {[%emt 0:00:49]} 19. Ne1 {[%emt 0:01:27]} Ne5 {[%emt 0:01:20]} 20. Kg1 {[%emt 0:06:39]} Nac4 {[%emt 0:04:51]} 21. Bxc4 {[%emt 0:03:00]} Nxc4 {[%emt 0:00:02]} 22. Nxf3 {[%emt 0:00:09]} Nb6 {[%emt 0:00:45]} 23. Nh4 {[%emt 0:02:31]} Qf7 {[%emt 0:01:33]} 24. Kh2 {[%emt 0:02:36]} O-O-O {[%emt 0:00:06]} 25. Raf1 {[%emt 0:00:59]} Kb8 {[%emt 0:00:33]} 26. Be3 {[%emt 0:00:48]} Rde8 {[%emt 0:00:40]} 27. Rhg1 {[%emt 0:03:10]} f5 {[%emt 0:01:10]} 28. Rxg7 {[%emt 0:01:15]} Qxg7 {[%emt 0:00:06]} 29. Bd4 {[%emt 0:00:03]} Qg5 {[%emt 0:01:09]} 30. Bxh8 {[%emt 0:00:30]} Rxh8 {[%emt 0:00:01]} 31. exf5 {[%emt 0:00:50]} Qf6 {[%emt 0:01:23]} 32. Qf4 {[%emt 0:05:48]} Re8 {[%emt 0:01:09]} 33. Rf2 {[%emt 0:02:21]} Re5 {[%emt 0:00:36]} 34. Ne4 {[%emt 0:00:44]} Qd8 {[%emt 0:01:29]} 35. c4 {[%emt 0:01:02]} Bxf5 {[%emt 0:00:35]} 36. Nxf5 {[%emt 0:00:35]} Nxc4 {[%emt 0:00:18]} 37. Nexd6 {[%emt 0:00:58]} cxd6 {[%emt 0:00:42]} 38. Qxc4 {[%emt 0:00:05]} Qf6 {[%emt 0:00:38]} 39. Rg2 {[%emt 0:05:55]} a6 {[%emt 0:00:27]} 40. Rg8+ {[%emt 0:01:31]} Ka7 {[%emt 0:00:02]} 41. Qd4+ {[%emt 0:30:08]} b6 {[%emt 0:30:23]} 42. Rg7+ {[%emt 0:00:51]} Ka8 {[%emt 0:00:08]} 43. Qc4 {[%emt 0:00:24]} 1-0

[Event "91st GER-ch 2020"]
[Site "Magdeburg"]
[Date "2020.08.20"]
[Round "7.5"]
[White "Neurohr, Juergen"]
[Black "Mueller, Dominik"]
[Result "0-1"]
[ECO "A15"]
[WhiteElo "2022"]
[BlackElo "2252"]
[Annotator "ChessBase"]
[PlyCount "57"]
[EventDate "2020.08.16"]
[EventType "swiss"]
[EventCountry "GER"]
[SourceTitle "playchess.com"]
[Source "ChessBase"]
[SourceQuality "1"]
[TimeControl "40/5400+30:1800+30"]

1. c4 Nf6 2. Nf3 e6 3. g3 Be7 4. Bg2 d5 5. d4 O-O 6. O-O dxc4 7. Na3 c5 8. dxc5 c3 9. Qc2 Qa5 10. Nc4 Qxc5 11. Qxc3 Nc6 12. Be3 Qh5 13. Nfe5 Nd5 14. Bxd5 exd5 15. Nxc6 bxc6 16. Na5 Bh3 17. Rfe1 Rac8 18. Bc5 Bf6 19. Qd2 Rfe8 20. Rac1 Qe5 21. Bxa7 d4 22. Nb3 Qd5 23. e4 Rxe4 24. Rxe4 Qxe4 25. f4 c5 26. Bxc5 d3 27. Re1 Qa8 28. Be3 Rc2 29. Qd1 0-1

[Event "91st GER-ch 2020"]
[Site "Magdeburg"]
[Date "2020.08.20"]
[Round "7.9"]
[White "Pfreundt, Jakob"]
[Black "Ehmann, Thilo"]
[Result "0-1"]
[ECO "A30"]
[WhiteElo "2397"]
[BlackElo "2329"]
[Annotator "ChessBase"]
[PlyCount "86"]
[EventDate "2020.08.16"]
[EventType "swiss"]
[EventCountry "GER"]
[SourceTitle "playchess.com"]
[Source "ChessBase"]
[SourceQuality "1"]
[TimeControl "40/5400+30:1800+30"]

1. c4 {[%emt 0:00:00]} c5 {[%emt 0:00:00]} 2. g3 {[%emt 0:00:15]} e5 {[%emt 0:01:20]} 3. Bg2 {[%emt 0:01:03]} g6 {[%emt 0:00:18]} 4. Nc3 {[%emt 0:01:34]} Bg7 {[%emt 0:00:13]} 5. d3 {[%emt 0:01:55]} d6 {[%emt 0:00:50]} 6. a3 {[%emt 0:14:35]} Nc6 {[%emt 0:01:55]} 7. Rb1 {[%emt 0:02:40]} a5 {[%emt 0:05:00]} 8. Qa4 {[%emt 0:20:08]} Ra6 {[%emt 0:02:29]} 9. Nd5 {[%emt 0:11:52]} Nge7 {[%emt 0:03:47]} 10. Bg5 {[%emt 0:01:13]} O-O {[%emt 0:01:05]} 11. Bxe7 {[%emt 0:00:32]} Nxe7 {[%emt 0:00:16]} 12. e3 {[%emt 0:04:12]} Bd7 {[%emt 0:06:52]} 13. Qd1 {[%emt 0:03:13]} Bc6 {[%emt 0:02:02]} 14. Nxe7+ {[%emt 0:03:58]} Qxe7 {[%emt 0:00:16]} 15. Nf3 {[%emt 0:01:17]} e4 {[%emt 0:03:06]} 16. Nd2 {[%emt 0:00:06]} f5 {[%emt 0:05:07]} 17. dxe4 {[%emt 0:01:00]} fxe4 {[%emt 0:00:30]} 18. Qg4 {[%emt 0:01:34]} Re8 {[%emt 0:00:22]} 19. h4 {[%emt 0:05:38]} Qe6 {[%emt 0:06:50]} 20. Qxe6+ {[%emt 0:01:40]} Rxe6 21. h5 {[%emt 0:03:00]} Bf6 {[%emt 0:03:06]} 22. hxg6 {[%emt 0:00:30]} hxg6 {[%emt 0:00:04]} 23. Kd1 {[%emt 0:03:36]} a4 {[%emt 0:03:09]} 24. Kc2 {[%emt 0:01:36]} d5 {[%emt 0:15:26]} 25. cxd5 {[%emt 0:02:58]} Bxd5 {[%emt 0:00:11]} 26. Rh6 {[%emt 0:00:03]} Bg5 {[%emt 0:15:01]} 27. Rh2 {[%emt 0:00:11]} Rab6 {[%emt 0:00:16]} 28. Rhh1 {[%emt 0:02:40]} Bf6 {[%emt 0:02:42]} 29. Rhd1 {[%emt 0:00:34]} c4 {[%emt 0:03:40]} 30. Nf1 {[%emt 0:01:54]} Rb5 {[%emt 0:01:11]} 31. Rxd5 {[%emt 0:05:08]} Rxd5 {[%emt 0:00:08]} 32. Nd2 {[%emt 0:00:05]} Rde5 {[%emt 0:00:55]} 33. Bf1 {[%emt 0:00:57]} Kg7 {[%emt 0:09:18]} 34. Rd1 {[%emt 0:00:51]} Rd5 {[%emt 0:05:21]} 35. Nxc4 {[%emt 0:00:52]} Rxd1 {[%emt 0:00:39]} 36. Kxd1 {[%emt 0:00:02]} Rc6 {[%emt 0:00:38]} 37. Na5 {[%emt 0:00:48]} Rc7 {[%emt 0:00:13]} 38. b4 {[%emt 0:00:40]} Rc3 {[%emt 0:00:51]} 39. Nxb7 {[%emt 0:00:12]} Rxa3 {[%emt 0:00:08]} 40. Bc4 {[%emt 0:00:09]} Rc3 {[%emt 0:01:12]} 41. Be6 {[%emt 0:30:51]} Be7 {[%emt 0:06:58]} 42. b5 {[%emt 0:00:00]} Bb4 {[%emt 0:00:40]} 43. g4 {[%emt 0:00:00]} Kf6 {[%emt 0:01:11]} 0-1

[Event "91st GER-ch 2020"]
[Site "Magdeburg"]
[Date "2020.08.20"]
[Round "7.10"]
[White "Andre, Gordon"]
[Black "Tschernatsch, Johannes"]
[Result "1-0"]
[ECO "D85"]
[WhiteElo "2373"]
[BlackElo "2241"]
[Annotator "ChessBase"]
[PlyCount "79"]
[EventDate "2020.08.16"]
[EventType "swiss"]
[EventCountry "GER"]
[SourceTitle "playchess.com"]
[Source "ChessBase"]
[SourceQuality "1"]
[TimeControl "40/5400+30:1800+30"]

1. d4 {[%emt 0:00:00]} Nf6 {[%emt 0:00:00]} 2. c4 {[%emt 0:00:00]} g6 {[%emt 0:00:00]} 3. Nc3 {[%emt 0:00:00]} d5 {[%emt 0:00:00]} 4. cxd5 {[%emt 0:01:39]} Nxd5 {[%emt 0:00:00]} 5. Bd2 {[%emt 0:00:22]} Bg7 {[%emt 0:00:19]} 6. e4 {[%emt 0:00:39]} Nxc3 {[%emt 0:00:14]} 7. Bxc3 {[%emt 0:00:04]} O-O {[%emt 0:00:57]} 8. Qd2 {[%emt 0:05:06]} Nd7 {[%emt 0:04:57]} 9. Nf3 {[%emt 0:06:22]} c5 {[%emt 0:07:19]} 10. d5 {[%emt 0:01:46]} Nf6 {[%emt 0:00:17]} 11. Bd3 {[%emt 0:06:57]} e6 {[%emt 0:11:23]} 12. Bxf6 {[%emt 0:02:25]} Qxf6 {[%emt 0:01:03]} 13. e5 {[%emt 0:00:12]} Qd8 {[%emt 0:00:06]} 14. d6 {[%emt 0:00:16]} f6 {[%emt 0:04:04]} 15. O-O {[%emt 0:09:38]} fxe5 {[%emt 0:02:22]} 16. Be4 {[%emt 0:00:59]} Rb8 {[%emt 0:06:22]} 17. Rad1 {[%emt 0:21:58]} Bd7 {[%emt 0:00:21]} 18. Rfe1 {[%emt 0:03:08]} Qf6 {[%emt 0:06:45]} 19. Qa5 {[%emt 0:07:57]} g5 {[%emt 0:03:37]} 20. Qxc5 {[%emt 0:07:21]} b6 {[%emt 0:03:45]} 21. Qc2 {[%emt 0:07:28]} Rbc8 {[%emt 0:01:27]} 22. Bxh7+ {[%emt 0:03:53]} Kh8 {[%emt 0:00:18]} 23. Qg6 {[%emt 0:02:39]} Bc6 {[%emt 0:08:05]} 24. Qxf6 {[%emt 0:02:03]} Bxf6 {[%emt 0:00:12]} 25. Be4 {[%emt 0:01:06]} Bxe4 {[%emt 0:01:28]} 26. Rxe4 {[%emt 0:00:03]} Rfd8 {[%emt 0:00:11]} 27. h4 {[%emt 0:04:44]} Rc5 {[%emt 0:09:17]} 28. Nxg5 {[%emt 0:01:22]} Bxg5 {[%emt 0:00:15]} 29. hxg5 {[%emt 0:00:04]} Kg7 {[%emt 0:00:36]} 30. b4 {[%emt 0:01:49]} Rc6 {[%emt 0:01:55]} 31. d7 {[%emt 0:00:41]} Kf7 {[%emt 0:01:01]} 32. Rxe5 {[%emt 0:01:05]} Ke7 {[%emt 0:03:19]} 33. g6 {[%emt 0:01:20]} Rxd7 {[%emt 0:01:06]} 34. Rxd7+ {[%emt 0:00:07]} Kxd7 {[%emt 0:00:05]} 35. g7 {[%emt 0:00:16]} Rc8 {[%emt 0:00:05]} 36. Rg5 {[%emt 0:00:06]} Rg8 {[%emt 0:00:06]} 37. f4 {[%emt 0:00:42]} Ke7 {[%emt 0:00:35]} 38. Kf2 {[%emt 0:00:11]} Kf6 {[%emt 0:00:08]} 39. Ke3 {[%emt 0:00:09]} e5 {[%emt 0:00:20]} 40. b5 {[%emt 0:00:42]} 1-0

[Event "91st GER-ch 2020"]
[Site "Magdeburg"]
[Date "2020.08.20"]
[Round "7.11"]
[White "Geue, Niklas"]
[Black "Trifan, Andrei Ioan"]
[Result "1-0"]
[ECO "C92"]
[WhiteElo "2050"]
[BlackElo "2249"]
[Annotator "ChessBase"]
[PlyCount "77"]
[EventDate "2020.08.16"]
[EventType "swiss"]
[EventCountry "GER"]
[SourceTitle "playchess.com"]
[Source "ChessBase"]
[SourceQuality "1"]
[TimeControl "40/5400+30:1800+30"]

1. e4 {[%emt 0:00:00]} e5 {[%emt 0:00:35]} 2. Nf3 {[%emt 0:01:35]} Nc6 {[%emt 0:01:43]} 3. Bb5 {[%emt 0:00:04]} a6 {[%emt 0:00:19]} 4. Ba4 {[%emt 0:00:04]} Nf6 {[%emt 0:00:12]} 5. O-O {[%emt 0:00:05]} Be7 {[%emt 0:00:28]} 6. Re1 {[%emt 0:01:21]} b5 {[%emt 0:01:46]} 7. Bb3 {[%emt 0:00:02]} O-O {[%emt 0:03:36]} 8. h3 {[%emt 0:00:02]} d6 {[%emt 0:01:37]} 9. c3 {[%emt 0:00:18]} Bb7 {[%emt 0:00:41]} 10. d4 {[%emt 0:02:41]} Re8 {[%emt 0:00:52]} 11. Ng5 {[%emt 0:06:21]} Rf8 {[%emt 0:00:11]} 12. Nf3 {[%emt 0:00:06]} h6 {[%emt 0:05:59]} 13. Nbd2 {[%emt 0:03:16]} Re8 {[%emt 0:00:18]} 14. Nf1 {[%emt 0:03:12]} Bf8 {[%emt 0:05:13]} 15. Ng3 {[%emt 0:00:34]} Na5 {[%emt 0:15:11]} 16. Bc2 {[%emt 0:00:37]} c5 {[%emt 0:01:51]} 17. d5 {[%emt 0:02:22]} Nc4 {[%emt 0:01:53]} 18. b3 {[%emt 0:04:41]} Nb6 {[%emt 0:00:28]} 19. Nh2 {[%emt 0:10:57]} Bc8 {[%emt 0:09:18]} 20. Be3 {[%emt 0:04:54]} Bd7 {[%emt 0:03:50]} 21. Rf1 {[%emt 0:05:52]} Nh7 {[%emt 0:09:42]} 22. Qd2 {[%emt 0:01:31]} Be7 {[%emt 0:02:01]} 23. Rae1 {[%emt 0:06:31]} Bh4 {[%emt 0:06:09]} 24. Nf3 {[%emt 0:02:10]} a5 {[%emt 0:04:41]} 25. Nxh4 {[%emt 0:01:25]} Qxh4 {[%emt 0:00:09]} 26. Bd3 {[%emt 0:04:16]} Ng5 {[%emt 0:06:08]} 27. Nf5 {[%emt 0:06:30]} Bxf5 {[%emt 0:04:20]} 28. exf5 {[%emt 0:00:23]} b4 {[%emt 0:01:13]} 29. c4 {[%emt 0:08:40]} Nd7 {[%emt 0:02:37]} 30. f4 {[%emt 0:03:53]} exf4 {[%emt 0:04:18]} 31. Bxf4 {[%emt 0:00:27]} Ne5 {[%emt 0:01:25]} 32. Bxe5 {[%emt 0:00:59]} Rxe5 {[%emt 0:00:34]} 33. Rxe5 {[%emt 0:00:23]} dxe5 {[%emt 0:00:27]} 34. Qf2 {[%emt 0:06:45]} Qxf2+ {[%emt 0:03:48]} 35. Kxf2 {[%emt 0:03:32]} a4 {[%emt 0:00:35]} 36. h4 {[%emt 0:03:25]} axb3 {[%emt 0:00:56]} 37. axb3 {[%emt 0:00:11]} Nh7 {[%emt 0:00:30]} 38. Re1 {[%emt 0:01:08]} f6 {[%emt 0:00:18]} 39. Be4 {[%emt 0:01:33]} 1-0